bitfinex/quotes_BTCUSD_20241124
["timestamp","ask_amount","ask_price","bid_price","bid_amount"]
[1732489277847,5e-07,97872.0,97871.0,0.27851397]
[1732489278316,5e-07,97872.0,97871.0,0.28022917]
[1732489280202,5e-07,97872.0,97871.0,0.35872917]
[1732489280422,5e-07,97872.0,97871.0,0.35672917]
[1732489280860,5e-07,97872.0,97871.0,0.35872917]
[1732489281080,5e-07,97872.0,97871.0,0.3861801]
[1732489281302,5e-07,97872.0,97871.0,0.35672917]
[1732489281759,5e-07,97872.0,97871.0,0.38618778]
[1732489284498,5e-07,97872.0,97871.0,0.0323672]
[1732489285384,5e-07,97872.0,97871.0,0.30360994]
[1732489285607,5e-07,97872.0,97871.0,0.0323672]
[1732489286056,0.00102315,97872.0,97871.0,0.0323672]
[1732489287645,5e-07,97872.0,97871.0,0.0323672]
[1732489288079,5e-07,97872.0,97871.0,0.43264625]
[1732489288754,5e-07,97872.0,97871.0,0.0323672]
[1732489290321,5e-07,97872.0,97871.0,0.13438147]
[1732489290537,5e-07,97872.0,97871.0,0.1638879]
[1732489295152,5e-07,97872.0,97871.0,0.16274713]
[1732489298301,5e-07,97872.0,97871.0,0.16154598]
[1732489298740,5e-07,97872.0,97871.0,0.43227952]
[1732489300108,5e-07,97872.0,97871.0,0.030652]
[1732489301423,5e-07,97872.0,97871.0,0.0323672]
[1732489305919,5e-07,97872.0,97871.0,0.4341175]
[1732489306137,5e-07,97872.0,97871.0,0.0323672]
[1732489310747,5e-07,97872.0,97871.0,0.03171951]
[1732489316627,5e-07,97872.0,97871.0,0.06101517]
[1732489321269,0.0830005,97872.0,97871.0,0.06166286]
[1732489321503,0.0830005,97872.0,97871.0,0.0323672]
[1732489321760,0.0830005,97872.0,97871.0,0.06169073]
[1732489323165,0.23311477,97872.0,97871.0,0.0017152]
[1732489323380,0.33528877,97872.0,97871.0,0.0017152]
[1732489323603,0.1311005,97872.0,97871.0,0.0017152]
[1732489323830,0.0830005,97872.0,97871.0,0.0323672]
[1732489324765,0.0830005,97872.0,97871.0,0.06167957]
[1732489327876,5e-07,97872.0,97871.0,0.06167957]
[1732489328123,5e-07,97872.0,97871.0,0.06270124]
[1732489328399,0.0792,97887.0,97886.0,0.030647]
[1732489333312,0.0799,97880.0,97878.0,0.03065]
[1732489333541,0.0799,97878.0,97871.0,0.0017152]
[1732489333755,0.0799,97876.0,97873.0,0.030651]
[1732489333981,0.00102265,97875.0,97874.0,0.030651]
[1732489335434,0.0799,97876.0,97875.0,0.030651]
[1732489335665,0.0008576,97887.0,97883.0,0.030648]
[1732489335666,0.083,97884.0,97883.0,0.030648]
[1732489335853,0.0008576,97887.0,97886.0,0.030647]
[1732489337314,0.0008576,97887.0,97886.0,0.33687499]
[1732489337728,0.0008576,97887.0,97886.0,0.05992819]
[1732489339336,0.0008576,97887.0,97886.0,0.05990291]
[1732489339548,0.0008576,97887.0,97886.0,0.030647]
[1732489339939,0.0008576,97887.0,97886.0,0.33659348]
[1732489340144,0.0008576,97887.0,97886.0,0.05989754]
[1732489341057,0.0008576,97887.0,97886.0,0.31493331]
[1732489341296,0.0008576,97887.0,97886.0,0.35831181]
[1732489341715,0.0008576,97887.0,97886.0,0.84806205]
[1732489341919,0.0008576,97887.0,97886.0,0.96506189]
[1732489342126,6e-07,97887.0,97886.0,0.64091181]
[1732489342367,8e-07,97897.0,97896.0,0.030644]
[1732489342572,0.0008568,97927.0,97896.0,0.030644]
[1732489342573,5e-07,97904.0,97903.0,0.230642]
[1732489342778,5e-07,97904.0,97903.0,0.51190681]
[1732489343409,5e-07,97904.0,97903.0,0.31190681]
[1732489344900,5e-07,97904.0,97903.0,0.51190681]
[1732489346781,5e-07,97904.0,97903.0,0.53490681]
[1732489346977,5e-07,97904.0,97903.0,0.61680681]
[1732489347244,7e-07,97914.0,97913.0,0.485539]
[1732489347481,7e-07,97914.0,97913.0,0.61680381]
[1732489347922,7e-07,97914.0,97913.0,0.59380381]
[1732489348376,7e-07,97914.0,97913.0,0.56455327]
[1732489353189,0.02666766,97929.0,97928.0,0.030634]
[1732489353402,0.02666766,97929.0,97928.0,0.13264827]
[1732489354796,0.02666766,97929.0,97928.0,0.53083188]
[1732489356360,0.02666766,97929.0,97928.0,0.13264827]
[1732489357282,0.02666766,97929.0,97928.0,0.21014827]
[1732489360615,0.02752466,97929.0,97928.0,0.21014827]
[1732489361068,0.02752466,97929.0,97928.0,0.60781267]
[1732489361278,0.02752466,97929.0,97928.0,0.60778578]
[1732489361494,0.02752466,97929.0,97928.0,0.60777687]
[1732489361722,0.02752466,97929.0,97928.0,0.60778112]
[1732489361965,0.02752466,97929.0,97928.0,0.60777551]
[1732489362189,0.02752466,97929.0,97928.0,0.21014827]
[1732489362428,0.02752466,97929.0,97928.0,0.60777923]
[1732489362674,0.02752466,97929.0,97928.0,0.42826496]
[1732489362901,0.02752466,97929.0,97928.0,0.29999207]
[1732489363116,0.02752466,97929.0,97928.0,0.030634]
[1732489363834,0.02752466,97929.0,97927.0,0.26935807]
[1732489364049,0.02752466,97929.0,97900.0,0.08396965]
[1732489364050,0.12603692,97928.0,97925.0,0.22454543]
[1732489364282,0.12603692,97928.0,97916.0,0.22454543]
[1732489364504,0.00102265,97927.0,97924.0,0.030635]
[1732489364723,0.15262466,97929.0,97928.0,0.030634]
[1732489364942,0.10502466,97929.0,97928.0,0.030634]
[1732489365389,0.02752466,97929.0,97928.0,0.30005989]
[1732489365655,0.02752466,97929.0,97928.0,0.030634]
[1732489366342,0.02752466,97929.0,97928.0,0.13366931]
[1732489366588,0.02752466,97929.0,97928.0,0.13264827]
[1732489369035,0.02752466,97929.0,97928.0,0.53027923]
[1732489369486,0.02752466,97929.0,97928.0,0.13264827]
[1732489371271,0.02752466,97929.0,97928.0,0.48264827]
[1732489373273,0.02752466,97929.0,97928.0,0.28436227]
[1732489375118,0.02752466,97929.0,97928.0,0.31351022]
[1732489376854,0.02752466,97929.0,97928.0,0.34647812]
[1732489377291,0.02752466,97929.0,97928.0,0.6497073]
[1732489377506,0.02752466,97929.0,97928.0,0.34647812]
[1732489379192,0.02752466,97929.0,97928.0,0.09446385]
[1732489379410,0.02752466,97929.0,97928.0,0.03336908]
[1732489379619,0.02752466,97929.0,97928.0,0.032348]
[1732489380321,0.02752466,97929.0,97928.0,0.43103892]
[1732489380529,0.02752466,97929.0,97928.0,0.032348]
[1732489380792,0.02752466,97929.0,97928.0,0.001714]
[1732489381019,0.28156131,97929.0,97928.0,0.001714]
[1732489381235,0.28156131,97929.0,97925.0,0.27031311]
[1732489381236,0.17842466,97929.0,97925.0,0.27031311]
[1732489381483,0.17842466,97929.0,97925.0,0.27056609]
[1732489381737,0.17842466,97929.0,97926.0,0.27056609]
[1732489381954,0.17842466,97929.0,97922.0,0.27056609]
[1732489382173,0.28053866,97929.0,97923.0,0.27056609]
[1732489382418,0.15542466,97929.0,97921.0,0.39912042]
[1732489382633,0.15542466,97929.0,97904.0,0.33638523]
[1732489382634,0.15542466,97929.0,97922.0,0.39912042]
[1732489382867,0.15542466,97929.0,97921.0,0.39912042]
[1732489383086,0.15542466,97929.0,97928.0,0.27083447]
[1732489383298,0.15542466,97929.0,97928.0,0.030634]
[1732489383736,0.02752466,97929.0,97928.0,0.030634]
[1732489385092,0.02752466,97929.0,97928.0,0.0323488]
[1732489387075,0.02752466,97929.0,97928.0,0.33644055]
[1732489387290,0.02752466,97929.0,97928.0,0.0323488]
[1732489387743,0.02752466,97929.0,97928.0,0.13538418]
[1732489387977,0.02752466,97929.0,97928.0,0.16357339]
[1732489388204,0.02752466,97929.0,97928.0,0.16357596]
[1732489388493,0.02752466,97929.0,97928.0,0.13436307]
[1732489388703,0.02752466,97929.0,97928.0,0.16357459]
[1732489390238,0.02752466,97929.0,97928.0,0.06156032]
[1732489390459,0.02752466,97929.0,97928.0,0.0323488]
[1732489391349,0.02752466,97929.0,97928.0,0.1635755]
[1732489392041,0.02752466,97929.0,97928.0,0.13436307]
[1732489393385,0.02752466,97929.0,97928.0,0.4397153]
[1732489394070,0.02752466,97929.0,97928.0,0.13436307]
[1732489394526,0.02752466,97929.0,97928.0,0.43971329]
[1732489394954,0.02752466,97929.0,97928.0,0.43970889]
[1732489395221,0.02752466,97929.0,97928.0,0.13436307]
[1732489395455,0.02752466,97929.0,97928.0,0.16357103]
[1732489395672,0.02752466,97929.0,97928.0,0.31357103]
[1732489397501,0.02752466,97929.0,97928.0,0.41357103]
[1732489398163,0.02752466,97929.0,97928.0,0.16155676]
[1732489398380,0.02752466,97929.0,97928.0,0.1323488]
[1732489399456,0.02752466,97929.0,97928.0,0.16156502]
[1732489400907,0.02752466,97929.0,97928.0,0.26660032]
[1732489401151,0.02752466,97929.0,97928.0,0.41357929]
[1732489404603,3.6e-07,97930.0,97929.0,0.180634]
[1732489404825,3.6e-07,97931.0,97930.0,0.030634]
[1732489405067,3.6e-07,97931.0,97930.0,0.51288527]
[1732489405285,3.6e-07,97931.0,97930.0,0.2171385]
[1732489406860,0.001,97950.0,97930.0,0.2171385]
[1732489406861,3e-08,97943.0,97942.0,0.03063]
[1732489407081,3e-08,97943.0,97942.0,0.24174427]
[1732489407296,0.42374886,97976.0,97975.0,0.03062]
[1732489407517,0.22374886,97976.0,97968.0,0.030622]
[1732489407737,0.2,97975.0,97966.0,0.030622]
[1732489407960,0.2,97975.0,97965.0,0.27107953]
[1732489408404,0.195,97975.0,97964.0,0.27107953]
[1732489408621,0.1958575,97975.0,97964.0,0.27107953]
[1732489409065,0.1958575,97975.0,97963.0,0.27107953]
[1732489409294,0.195,97972.0,97963.0,0.27107953]
[1732489409716,0.195,97972.0,97961.0,0.27107953]
[1732489410428,0.195,97972.0,97962.0,0.27107953]
[1732489410652,0.195,97972.0,97961.0,0.27107953]
[1732489411119,0.195,97972.0,97962.0,0.27107953]
[1732489411640,0.195,97972.0,97950.0,0.40026588]
[1732489411641,0.0008575,97975.0,97967.0,0.27107953]
[1732489411877,0.0008575,97975.0,97968.0,0.27107953]
[1732489412559,0.1958575,97975.0,97967.0,0.27107953]
[1732489412807,0.1958575,97975.0,97962.0,0.27107953]
[1732489413039,0.1958575,97975.0,97974.0,0.2258015]
[1732489413272,0.1958575,97975.0,97943.0,0.10201427]
[1732489413273,0.0008575,97975.0,97964.0,0.27107953]
[1732489413515,0.0008575,97975.0,97966.0,0.27107953]
[1732489413747,0.0008575,97975.0,97974.0,0.27107953]
[1732489414018,0.0008575,97975.0,97974.0,0.10201427]
[1732489414255,0.0008575,97975.0,97974.0,0.14207806]
[1732489414492,0.0008575,97975.0,97974.0,0.50148083]
[1732489414934,0.0008575,97975.0,97974.0,0.10201427]
[1732489415155,0.0008575,97975.0,97974.0,0.13442946]
[1732489415609,0.0008575,97975.0,97958.0,0.30507078]
[1732489415837,0.0008575,97975.0,97969.0,0.39935185]
[1732489416056,0.0008575,97975.0,97945.0,0.005]
[1732489416057,0.195,97970.0,97965.0,0.39935185]
[1732489416309,0.00102265,97974.0,97968.0,0.27052971]
[1732489416565,0.195,97970.0,97968.0,0.27052971]
[1732489416782,0.195,97970.0,97962.0,0.27053797]
[1732489416999,0.195,97970.0,97960.0,0.27053797]
[1732489417216,0.195,97970.0,97965.0,0.27053797]
[1732489417718,0.0008575,97975.0,97969.0,0.27057588]
[1732489417937,0.0008575,97975.0,97974.0,0.03062]
[1732489418593,0.0008575,97975.0,97972.0,0.03062]
[1732489418819,0.0008575,97975.0,97970.0,0.030621]
[1732489419037,0.0008575,97975.0,97972.0,0.03062]
[1732489419297,0.0008575,97975.0,97971.0,0.030621]
[1732489419733,0.0008575,97975.0,97972.0,0.03062]
[1732489420443,0.0008575,97975.0,97973.0,0.27030689]
[1732489420661,0.0008575,97975.0,97972.0,0.27030689]
[1732489420874,0.0008575,97975.0,97972.0,0.30092689]
[1732489421090,0.0008575,97975.0,97970.0,0.030621]
[1732489421316,0.0008575,97975.0,97974.0,0.03062]
[1732489421752,0.0008575,97975.0,97971.0,0.030621]
[1732489421978,0.0008575,97975.0,97969.0,0.39952219]
[1732489422189,0.0008575,97975.0,97974.0,0.27019292]
[1732489422412,0.0008575,97975.0,97973.0,0.27017311]
[1732489422632,0.0008575,97975.0,97974.0,0.03164058]
[1732489422851,0.0008575,97975.0,97974.0,0.03062]
[1732489423088,0.0008575,97975.0,97968.0,0.030622]
[1732489423089,0.0008575,97975.0,97968.0,0.39892749]
[1732489423320,0.195,97971.0,97968.0,0.27015078]
[1732489423542,0.0008575,97975.0,97965.0,0.27015078]
[1732489423775,0.0008575,97975.0,97974.0,0.03062]
[1732489424007,0.0008575,97975.0,97974.0,0.10201427]
[1732489424255,0.0008575,97975.0,97974.0,0.17269806]
[1732489424940,0.0008575,97975.0,97974.0,0.04006379]
[1732489425183,0.0008575,97975.0,97959.0,0.03307566]
[1732489425411,0.0008575,97975.0,97974.0,0.13263427]
[1732489426344,0.0008575,97975.0,97974.0,0.17269806]
[1732489426564,0.0008575,97975.0,97974.0,0.15269806]
[1732489427309,0.0008575,97975.0,97974.0,0.13269806]
[1732489427777,0.0008575,97975.0,97974.0,0.11269806]
[1732489428259,0.0008575,97975.0,97974.0,0.4563185]
[1732489428485,0.0008575,97975.0,97974.0,0.43529806]
[1732489428736,0.0008575,97975.0,97974.0,0.2301981]
[1732489428957,0.0008575,97975.0,97974.0,0.47754324]
[1732489429194,0.0008575,97975.0,97974.0,0.87623151]
[1732489429420,0.0008575,97975.0,97974.0,0.45754324]
[1732489429640,0.0008575,97975.0,97974.0,0.45954324]
[1732489429876,0.0008575,97975.0,97974.0,0.43954324]
[1732489430125,0.0008575,97975.0,97974.0,0.37135941]
[1732489430338,0.0008575,97975.0,97974.0,0.47645941]
[1732489430602,0.0008575,97975.0,97974.0,0.45845941]
[1732489430854,0.0008575,97975.0,97974.0,0.53241526]
[1732489431082,0.0008575,97975.0,97974.0,0.24263427]
[1732489431321,0.0008575,97975.0,97974.0,0.020413]
[1732489432460,0.0008575,97975.0,97972.0,0.020413]
[1732489432696,0.0008575,97975.0,97974.0,0.15650548]
[1732489432938,0.0008575,97975.0,97972.0,0.020413]
[1732489432939,0.0008575,97975.0,97973.0,0.10201427]
[1732489433190,0.0008575,97975.0,97974.0,0.020413]
[1732489433420,0.0008575,97975.0,97973.0,0.10201427]
[1732489433652,0.0008575,97975.0,97974.0,0.02143348]
[1732489433881,0.0008575,97975.0,97974.0,0.13881149]
[1732489434123,0.0008575,97975.0,97974.0,0.26632449]
[1732489434355,0.0008575,97975.0,97974.0,0.22952727]
[1732489434788,0.0008575,97975.0,97974.0,0.20952727]
[1732489435004,0.0008575,97975.0,97974.0,0.48992727]
[1732489435216,0.0008575,97975.0,97974.0,0.50505782]
[1732489435432,0.0008575,97975.0,97974.0,0.48505782]
[1732489435901,0.0008575,97975.0,97974.0,0.86323771]
[1732489436341,0.0008575,97975.0,97974.0,0.84323771]
[1732489436577,0.0008575,97975.0,97974.0,0.8433012]
[1732489436822,0.0008575,97975.0,97974.0,0.52464482]
[1732489437040,0.0008575,97975.0,97974.0,0.54505782]
[1732489437278,0.0008575,97975.0,97974.0,0.52505782]
[1732489437760,0.0008575,97975.0,97974.0,0.50505782]
[1732489437990,0.0008575,97975.0,97974.0,0.43795782]
[1732489438232,0.0008575,97975.0,97974.0,0.54505782]
[1732489438458,0.0008575,97975.0,97974.0,0.52505782]
[1732489438688,0.0008575,97975.0,97974.0,0.72505782]
[1732489438917,0.0008575,97975.0,97974.0,0.70705782]
[1732489439129,0.0008575,97975.0,97974.0,0.68505782]
[1732489439625,0.0008575,97975.0,97974.0,0.70805782]
[1732489439626,5e-07,97975.0,97974.0,0.70805782]
[1732489439862,5e-07,97975.0,97974.0,0.69416788]
[1732489440099,4.6e-07,97980.0,97979.0,0.129512]
[1732489440333,4.6e-07,97980.0,97979.0,0.25863633]
[1732489440572,4.6e-07,97980.0,97979.0,0.27397486]
[1732489440798,4.6e-07,97980.0,97979.0,0.29438686]
[1732489441022,4.6e-07,97980.0,97979.0,0.27438686]
[1732489441468,4.6e-07,97980.0,97979.0,0.25438686]
[1732489441714,4.6e-07,97980.0,97979.0,0.25638686]
[1732489441936,4.6e-07,97980.0,97979.0,0.13353633]
[1732489442201,4.6e-07,97980.0,97979.0,0.2901768]
[1732489442443,4.6e-07,97980.0,97979.0,0.5772768]
[1732489442684,4.6e-07,97980.0,97979.0,0.5572768]
[1732489442917,4.6e-07,97980.0,97979.0,0.5372768]
[1732489443389,4.6e-07,97980.0,97979.0,0.5172768]
[1732489443850,4.6e-07,97980.0,97979.0,0.6172768]
[1732489444083,4.6e-07,97980.0,97979.0,0.6152768]
[1732489444334,4.6e-07,97980.0,97979.0,0.6202768]
[1732489444567,4.6e-07,97980.0,97979.0,0.65199352]
[1732489444796,4.6e-07,97980.0,97979.0,0.62941072]
[1732489445024,4.6e-07,97980.0,97979.0,0.60941072]
[1732489445305,4.6e-07,97980.0,97979.0,0.62262702]
[1732489445536,4.6e-07,97980.0,97979.0,0.60262702]
[1732489445784,4.6e-07,97980.0,97979.0,0.51687649]
[1732489446157,4.6e-07,97980.0,97979.0,0.49687649]
[1732489446366,4.6e-07,97980.0,97979.0,0.49487649]
[1732489446573,4.6e-07,97980.0,97979.0,0.47687649]
[1732489446981,4.6e-07,97980.0,97979.0,0.45687649]
[1732489447188,4.6e-07,97980.0,97979.0,0.51687649]
[1732489447563,4.6e-07,97980.0,97979.0,0.64687649]
[1732489448013,4.6e-07,97980.0,97979.0,0.62687649]
[1732489448432,4.6e-07,97980.0,97979.0,0.62487649]
[1732489448650,4.6e-07,97980.0,97979.0,0.60687649]
[1732489449070,4.6e-07,97980.0,97979.0,0.58687649]
[1732489449506,4.6e-07,97980.0,97979.0,0.56687649]
[1732489449728,4.6e-07,97980.0,97979.0,0.53366019]
[1732489449980,4.6e-07,97980.0,97979.0,0.61124819]
[1732489450183,4.6e-07,97980.0,97979.0,0.63366019]
[1732489450435,4.6e-07,97980.0,97979.0,0.61366019]
[1732489450770,4.6e-07,97980.0,97979.0,0.59366019]
[1732489451263,0.49886994,97989.0,97988.0,0.29]
[1732489451462,0.49886994,97989.0,97988.0,0.41442427]
[1732489451671,0.49886994,97989.0,97988.0,0.39242427]
[1732489452279,0.49886994,97989.0,97988.0,0.37242427]
[1732489452502,0.49886994,97989.0,97988.0,0.37442427]
[1732489452635,0.49756994,97989.0,97988.0,0.38155587]
[1732489452847,0.49756994,97989.0,97988.0,0.35442427]
[1732489453280,0.49756994,97989.0,97988.0,0.21442427]
[1732489453502,0.49756994,97989.0,97988.0,0.33242427]
[1732489453937,0.49756994,97989.0,97988.0,0.24442427]
[1732489454382,0.45687669,97989.0,97988.0,0.22442427]
[1732489454604,0.45687669,97989.0,97988.0,0.25315124]
[1732489455055,0.45687669,97989.0,97988.0,0.25356124]
[1732489455466,0.45687669,97989.0,97988.0,0.23156124]
[1732489455698,0.45687669,97989.0,97988.0,0.21356124]
[1732489455929,0.45687669,97989.0,97988.0,0.24356124]
[1732489456154,0.45687669,97989.0,97988.0,0.37424586]
[1732489456390,0.45687669,97989.0,97988.0,0.37624586]
[1732489456617,0.45687669,97989.0,97988.0,0.35624586]
[1732489457054,0.45687669,97989.0,97988.0,0.43626013]
[1732489457495,0.45687669,97989.0,97988.0,0.42510889]
[1732489457749,0.45687669,97989.0,97988.0,0.42710889]
[1732489458174,0.41753079,97989.0,97988.0,0.45611858]
[1732489458390,0.41753079,97989.0,97988.0,0.45411858]
[1732489458810,0.41753079,97989.0,97988.0,0.45611858]
[1732489459454,0.41757172,97989.0,97988.0,0.45611858]
[1732489459870,0.54577172,97989.0,97988.0,0.35410431]
[1732489460084,0.54577172,97989.0,97988.0,0.05309462]
[1732489460317,0.49997172,97989.0,97988.0,0.05309462]
[1732489460544,0.49997172,97989.0,97988.0,0.03309462]
[1732489461192,0.49997172,97989.0,97986.0,0.02041]
[1732489461440,0.49997172,97989.0,97988.0,0.02041]
[1732489461647,0.49997172,97989.0,97988.0,0.00041]
[1732489461855,0.49997172,97989.0,97988.0,0.02041]
[1732489462530,0.49997172,97989.0,97988.0,0.00041]
[1732489462774,0.49997172,97989.0,97988.0,0.02041]
[1732489463226,0.49997172,97989.0,97986.0,0.02041]
[1732489463463,0.49997172,97989.0,97988.0,0.02041]
[1732489464102,0.49997172,97989.0,97986.0,0.02041]
[1732489464535,0.49997172,97989.0,97988.0,0.02041]
[1732489464975,0.49997172,97989.0,97986.0,0.02041]
[1732489465602,0.49997172,97989.0,97988.0,0.02041]
[1732489466566,0.49997172,97989.0,97988.0,0.0221238]
[1732489467982,0.49997172,97989.0,97988.0,0.0017138]
[1732489468215,0.49997172,97989.0,97988.0,0.0221238]
[1732489468451,0.49997172,97989.0,97988.0,0.02041]
[1732489468669,0.49997172,97989.0,97986.0,0.02041]
[1732489468894,0.49997172,97989.0,97988.0,0.02041]
[1732489469135,0.49997172,97989.0,97986.0,0.02041]
[1732489469566,0.49997172,97989.0,97985.0,0.39911287]
[1732489469791,0.49997172,97989.0,97982.0,0.54911287]
[1732489470013,0.49997172,97989.0,97981.0,0.03368475]
[1732489470232,0.49997172,97989.0,97988.0,0.02041]
[1732489470920,0.49997172,97989.0,97985.0,0.020411]
[1732489471169,0.49997172,97989.0,97980.0,0.41952487]
[1732489471392,0.49997172,97989.0,97980.0,0.020412]
[1732489471610,0.49997172,97989.0,97988.0,0.02041]
[1732489471901,0.49997172,97989.0,97982.0,0.020411]
[1732489472128,0.49997172,97989.0,97988.0,0.02041]
[1732489472357,0.49997172,97989.0,97982.0,0.020411]
[1732489472358,0.49947172,97989.0,97982.0,0.020411]
[1732489472575,0.49947172,97989.0,97988.0,0.02041]
[1732489473500,0.49947172,97989.0,97980.0,0.39911287]
[1732489473501,0.49947172,97989.0,97982.0,0.020411]
[1732489473972,0.49947172,97989.0,97988.0,0.02041]
[1732489474847,0.49947172,97989.0,97986.0,0.02041]
[1732489475098,0.49947172,97989.0,97988.0,0.02041]
[1732489476729,0.49947172,97989.0,97986.0,0.02041]
[1732489476950,0.49947172,97989.0,97988.0,0.02041]
[1732489477165,0.49947172,97989.0,97986.0,0.02041]
[1732489477388,0.41707172,97989.0,97988.0,0.02041]
[1732489477608,0.41707172,97989.0,97988.0,0.00041]
[1732489477829,0.41707172,97989.0,97988.0,0.39911287]
[1732489478098,0.41707172,97989.0,97988.0,0.37911287]
[1732489478292,0.41707172,97989.0,97986.0,0.02041]
[1732489478510,0.41707172,97989.0,97988.0,0.02041]
[1732489478984,0.41792862,97989.0,97988.0,0.02041]
[1732489479205,0.41792862,97989.0,97986.0,0.0221238]
[1732489479458,0.41792862,97989.0,97988.0,0.02041]
[1732489479671,0.49792862,97989.0,97988.0,0.02041]
[1732489479887,0.49792862,97989.0,97986.0,0.0017138]
[1732489480354,0.49792862,97989.0,97988.0,0.00041]
[1732489480582,0.49792862,97989.0,97988.0,0.02041]
[1732489480805,0.49792862,97989.0,97986.0,0.0017138]
[1732489481050,0.102054,97987.0,97986.0,0.0017138]
[1732489481271,0.49792862,97989.0,97988.0,0.010205]
[1732489481502,0.49792862,97989.0,97986.0,0.0119188]
[1732489481731,0.49792862,97989.0,97979.0,0.03451515]
[1732489481983,0.49792862,97989.0,97986.0,0.010205]
[1732489482206,0.49792862,97989.0,97988.0,0.010205]
[1732489482916,0.49792862,97989.0,97984.0,0.00939539]
[1732489483135,0.49792862,97989.0,97988.0,0.010205]
[1732489483367,0.49792862,97989.0,97984.0,0.00939539]
[1732489483368,0.49792862,97989.0,97986.0,0.40067255]
[1732489483615,0.49792862,97989.0,97988.0,0.010205]
[1732489483847,0.49792862,97989.0,97986.0,0.39046755]
[1732489484076,0.49792862,97989.0,97984.0,0.00939539]
[1732489484316,0.49792862,97989.0,97979.0,0.1184848]
[1732489484572,0.49792862,97989.0,97986.0,0.00041]
[1732489484813,0.49792862,97989.0,97981.0,0.010206]
[1732489485057,0.49792862,97989.0,97979.0,0.1184848]
[1732489485058,0.49792862,97989.0,97979.0,0.1086908]
[1732489485289,0.49792862,97989.0,97988.0,0.010205]
[1732489485517,0.49792862,97989.0,97984.0,0.010205]
[1732489485749,0.49792862,97989.0,97979.0,0.1086908]
[1732489485750,0.49792862,97989.0,97988.0,0.010205]
[1732489486208,0.49792862,97989.0,97979.0,0.01492615]
[1732489486457,0.49792862,97989.0,97979.0,0.01533815]
[1732489486703,0.49792862,97989.0,97975.0,0.020412]
[1732489486919,0.49792862,97989.0,97976.0,0.0290606]
[1732489487408,0.49792862,97989.0,97983.0,0.010205]
[1732489487641,0.49792862,97989.0,97974.0,0.03358203]
[1732489487882,0.49792862,97989.0,97988.0,0.010205]
[1732489488104,0.49792862,97989.0,97979.0,0.08396965]
[1732489488332,0.49792862,97989.0,97979.0,0.07417465]
[1732489488811,0.49792862,97989.0,97988.0,0.010205]
[1732489489288,0.49792862,97989.0,97982.0,0.4003107]
[1732489489941,0.49792862,97989.0,97988.0,0.010205]
[1732489490376,0.49792862,97989.0,97987.0,0.3905157]
[1732489490619,0.49792862,97989.0,97985.0,0.010205]
[1732489490871,0.49792862,97989.0,97988.0,0.010205]
[1732489491101,0.41792862,97989.0,97988.0,0.010205]
[1732489491547,0.41792862,97989.0,97988.0,0.02906965]
[1732489491797,0.41792862,97989.0,97988.0,0.010205]
[1732489492267,0.41792862,97989.0,97988.0,0.00947965]
[1732489492503,0.41792862,97989.0,97988.0,0.01968465]
[1732489492747,0.41792862,97989.0,97988.0,0.010205]
[1732489492981,0.41792862,97989.0,97988.0,0.00947965]
[1732489493207,0.41792862,97989.0,97988.0,0.01968465]
[1732489493661,0.41792862,97989.0,97987.0,0.02892104]
[1732489493882,0.41792862,97989.0,97988.0,0.04112604]
[1732489494104,0.41792862,97989.0,97988.0,0.012205]
[1732489494836,0.41792862,97989.0,97988.0,0.26421927]
[1732489495060,0.41792862,97989.0,97988.0,0.24421927]
[1732489495499,0.41792862,97989.0,97988.0,0.55728466]
[1732489495728,0.41792862,97989.0,97988.0,0.55928466]
[1732489496398,0.41792862,97989.0,97988.0,0.160205]
[1732489496614,0.41792862,97989.0,97988.0,0.010205]
[1732489497762,0.41792862,97989.0,97988.0,0.11221927]
[1732489497989,0.41792862,97989.0,97988.0,0.26221927]
[1732489498214,0.41792862,97989.0,97988.0,0.26421927]
[1732489500211,0.41792862,97989.0,97988.0,0.26221927]
[1732489500432,0.41792862,97989.0,97988.0,0.26421927]
[1732489500658,0.41792862,97989.0,97988.0,0.56707966]
[1732489500897,0.36792862,97989.0,97988.0,0.26421927]
[1732489501363,0.36792862,97989.0,97988.0,0.25201427]
[1732489502024,0.36792862,97989.0,97988.0,0.55887466]
[1732489502252,0.36792862,97989.0,97988.0,0.45686039]
[1732489502522,0.36792862,97989.0,97988.0,0.002]
[1732489503166,0.36792862,97989.0,97985.0,0.16671722]
[1732489503381,0.35192862,97989.0,97985.0,0.11873149]
[1732489503596,0.35192862,97989.0,97979.0,0.12612419]
[1732489503597,0.078,97988.0,97979.0,0.12612419]
[1732489504787,0.35192862,97989.0,97979.0,0.04215454]
[1732489504788,0.0796,97984.0,97979.0,0.04215454]
[1732489505014,0.07923873,97984.0,97979.0,0.04215454]
[1732489505276,0.42868278,97979.0,97978.0,0.4011611]
[1732489505501,0.0454,97972.0,97970.0,0.4011611]
[1732489505722,0.0454,97972.0,97963.0,0.001714]
[1732489505723,0.18328278,97965.0,97963.0,0.001714]
[1732489505978,0.28529705,97964.0,97963.0,0.001714]
[1732489506454,0.38737505,97964.0,97963.0,0.001714]
[1732489506678,0.28529705,97964.0,97963.0,0.001714]
[1732489506889,0.28529705,97964.0,97963.0,0.2734979]
[1732489507572,0.28529705,97964.0,97963.0,0.001714]
[1732489507573,0.48529705,97964.0,97963.0,0.001714]
[1732489507790,0.63557505,97964.0,97963.0,0.001714]
[1732489508042,0.71687505,97964.0,97963.0,0.001714]
[1732489508257,0.46398278,97952.0,97951.0,0.2717839]
[1732489508497,0.46398278,97952.0,97911.0,0.01671722]
[1732489508498,0.302099,97944.0,97943.0,0.2717839]
[1732489508742,0.302099,97944.0,97910.0,0.08396965]
[1732489508743,0.2,97942.0,97938.0,0.2717839]
[1732489508977,0.102105,97938.0,97937.0,0.2717839]
[1732489509219,0.10201427,97938.0,97936.0,0.2717839]
[1732489509452,0.10201427,97938.0,97908.0,0.040778]
[1732489509453,0.180706,97937.0,97933.0,0.27154085]
[1732489509692,0.10201427,97936.0,97932.0,0.27154085]
[1732489509928,0.10201427,97936.0,97920.0,0.4011611]
[1732489509929,0.18328278,97933.0,97930.0,0.27154085]
[1732489510121,0.18328278,97933.0,97931.0,0.27154085]
[1732489510400,0.18328278,97933.0,97925.0,0.27154085]
[1732489510617,0.18328278,97933.0,97923.0,0.27154085]
[1732489510849,0.10201427,97932.0,97923.0,0.27154085]
[1732489511085,0.10201427,97932.0,97913.0,0.001714]
[1732489511086,0.81801978,97931.0,97929.0,0.22626138]
[1732489511348,0.28739678,97929.0,97928.0,0.32797618]
[1732489511570,0.69211105,97929.0,97928.0,0.0236148]
[1732489511797,0.69211105,97929.0,97913.0,0.001714]
[1732489511798,0.36711178,97915.0,97914.0,0.22626138]
[1732489512016,0.48741278,97914.0,97913.0,0.001714]
[1732489512244,0.58942705,97914.0,97913.0,0.001714]
[1732489512461,0.61042705,97914.0,97913.0,0.001714]
[1732489512924,0.48529705,97914.0,97913.0,0.001714]
[1732489513635,0.0797,97915.0,97913.0,0.001714]